Workbook

Sheet Cover Page
D1: Add company logo
N2: Version 2.1 11/11/19
B8: Add photo
N13: Notes:
N14: This template may require adjustments by individual operators to meet specific reporting requirements as defined in the site Permit(s)
B29: Annual Performance Report 2020
B31: Permit EPR/BT4249
B33: Newlincs Development IWMF
B35: other name of facility (if applicable)
B37: operator name
B39: Year: | C39: 2020
B41: Address: | C41: South Marsh Road, Stallingborough, NE Lincs. DN41 8BZ
B43: Tel: | C43: 01469 552550
B45: Email: | C45: info@newlincs.com
B47: Prepared by: | C47: Darren Rea | F47: Position: | G47: Systems Engineer
B49: Approved by: | C49: Stephen Gilbert | F49: Position: | G49: Plant Manager
B51: Version: | C51: 1
B53: Issue Date:

Sheet Contents
A1: =+'Cover Page'!$B$29 -> Annual Performance Report 2020 | E1: =+'Cover Page'!$B$33 -> Newlincs Development IWMF
A3: Contents | K3: Notes:
A4: Section | B4: Subject | H4: Page | K4: Section references and Page nos. to be inserted
B5: Facility Information | H5: 3 | K5: Sections and Subjects may require adjustment by individual operators to meet specific reporting requirements as defined in the sites Permit(s)
B6: Operational Data | H6: 4
B7: Summary of Plant Operations and Maintenance | H7: 6
B8: Summary of Residue Handling | H8: 6
B9: Performance 1 Form | H9: 7
B10: Energy Usage | H10: 8
B11: Permit Compliance | H11: 9
B12: Improvements | H12: 10
B13: Public Liaison | H13: 11
B14: Residue Quality | H14: 12
B15: Emissions to Water | H15: 13
B16: Emissions to Air (periodically monitored) | H16: 14
B17: Emissions to Air (continuously monitored) | H17: 15
B18: Hydrogen Chloride emissions | H18: 16
B19: Sulphur Dioxide emissions | H19: 17
B20: Oxides of Nitrogen emissions | H20: 18
B21: Total Organic Carbon emissions | H21: 19
B22: Particulate Matter emissions | H22: 20
B23: Carbon Monoxide emissions | H23: 21
B24: Ammonia emissions | H24: 22
A26: Version Control
A27: Version | B27: Information | H27: Date
A28: 1 | B28: Report issued
A34: Distribution
A35: Copy | B35: Name, Role | H35: No.
A36: 1 | B36: Environment agency
A44: This report is required under the Industrial Emissions Directive’s Article 55(2) requirements on reporting and public information on waste incineration plants and co-incineration plants, which require the operator to produce an annual report on the functioning and monitoring of the plant and make it available to the public.

Sheet Facility Info
A1: =+'Cover Page'!$B$29 -> Annual Performance Report 2020 | E1: =+'Cover Page'!$B$33 -> Newlincs Development IWMF
A3: Plant Description and Design
A5: The NEWLINCS energy from waste plant located at Stallingborough, near Grimsby, has been operating since 2003 providing MSW disposal services for North-East Lincolnshire Council. The waste process mainly originates residents the North-East Lincolnshire Council catchment area. The main purpose of the energy from waste plant is to burn municipal waste and to recover energy. The plant comprises of waste reception, storage of waste-fuel, combustion kiln, combustion air supply systems, boiler, steam turbine generator, hot water production, flue gas treatment, flue gas stack, separation and storage of residues, industrial water storage, plant control systems and recording and monitoring devices. The plant has a design capacity of 7 tonnes per hour, which equates to 56,000 tonnes per annum including an allowance for plant shutdown. There is one waste incineration stream. The heat produced is used to generate electricity for own use and export to the neighbouring chemical manufacturing plant or the national grid along with hot water which is also exported to the same adjacent plant. The process generates approximately 3MW of electricity and 3MW of heat.
A20: Summary of Operational Processes and Procedures
A22: Waste is delivered to the plant in covered vehicles which are weighed before tipping tip into a waste storage pit within a fully enclosed building. The building is maintained under slight negative pressure to stop odour from the waste escaping, there is no odour produced by the incineration process. A 1.5 m3 grab transfers waste to the feed hopper of the combustion plant. The grab is also used to homogenise the waste and to identify and remove any non-conforming waste. Incineration takes place inside a conical oscillating combustion cell this is a particularly effective solution for smaller scale EfW plants. The tapered cylindrical cell is inclined by several degrees from the horizontal and oscillates by one hundred and five degrees either side of the vertical. The twin wall combustion cell is a one-piece steel fabrication lined with cast refractory 200mm thick. Primary combustion air is fed in below the waste to promote good combustion. Secondary combustion air is injected above the waste where it provides for good mixing and combustion control. The combustion gases exit the combustion cell and pass into the post-combustion chamber and then to the heat recovery boiler. The geometry and mechanical layout ensures a high degree of turbulence both in the bed of burning material and in the combustion flue gas. The combustion control system regulates the waste feed, combustion cell speed and combustion fans to maintain efficient combustion. Urea is injected into the combustion chamber to react with the oxides of nitrogen, chemically reducing them to nitrogen and water. Auxiliary low NOx gas burners are fitted for start-up and to ensure that a temperature above 850C for 2 seconds can always be maintained. The steam raised in the boiler plant is fed to a steam turbine, which generates electricity, the steam is then condensed and recycled to the boiler. The water make-up is taken from the mains supply and is treated in a demineralisation plant prior to use in the boiler. Hot water is generated, and its energy content exported by means of a closed loop to the neighbouring chemical manufacturing factory. Flue gases pass from the boiler to flue gas treatment (FGT) plant; flue gas enters a reaction chamber where powdered lime and activated carbon are injected to neutralise acid gases and absorb dioxins/furans, dioxin like PCBs, volatile organic compounds (VOCs) and mercury. There is a continuous recirculation of lime and ash in the reaction chamber in order to improve the efficiency of the neutralisation reaction. Bag filters remove the fine ash, excess lime and carbon as the gases pass across the bag fabric. The residues (APCR) from the filter are collected and stored a silo. The cleaned gas then discharges to atmosphere via one 55-metre stack at an efflux velocity in excess of 15m sec. Bottom ash (IBA), separated ferrous metals and APCR are sent for disposal or recovery off site by licensed contractors subject to waste licensing legislation. All process waste waters pass to the industrial water lagoon for closed loop recycling of waters used by the process. Clean run off water from roofs is discharge to local drainage. Regular analysis of the IBA and APC residues is carried out. Duty/standby Continuous Emission Monitoring (CEM) system monitor and record the stack flue gas emissions. All emissions monitoring is in accordance with site permit/EA guidance. The site operates to ISO 9001 14001 & OHSAS 18001 procedures

Sheet Operational Data
A1: =+'Cover Page'!$B$29 -> Annual Performance Report 2020 | E1: =+'Cover Page'!$B$33 -> Newlincs Development IWMF
A3: Operational Data
A4: Plant Size | D4: tonnes pa | F4: MWth | H4: MWe
A5: No. of combustion lines | B5: 1 | D5: No. of Turbines: | F5: 1
A7: Waste types received | B7: Unit | C7: Q1 | D7: Q2 | E7: Q3 | F7: Q4 | G7: Year Total | H7: %
A8: Household / Local Authority | B8: tonnes | C8: 13124.88 | D8: 13659.12 | E8: 13415.29 | F8: 12804.91 | G8: =SUM(C8:F8) -> 53004.2 | H8: =IF(G8>0,G8/$G$18,"-") -> 0.9785222162
A9: Commercial & Industrial | C9: 229.32 | D9: 383.96 | E9: 230.04 | F9: 320.08 | G9: =SUM(C9:F9) -> 1163.4 | H9: 0.02147778377
A10: Hazardous | G10: 0 | H10: -
A11: Clinical | G11: 0 | H11: -
A12: Waste wood (biomass) | G12: 0 | H12: -
A13: Refuse derived fuel | G13: 0 | H13: -
A14: Solid recovered fuel | G14: 0 | H14: -
A15: Other [Please specify] | G15: 0 | H15: -
A16: Other [Please specify] | G16: 0 | H16: -
A17: Other [Please specify] | G17: 0 | H17: -
A18: Total waste received | C18: =SUM(C8:C17) -> 13354.2 | D18: =SUM(D8:D17) -> 14043.08 | E18: =SUM(E8:E17) -> 13645.33 | F18: =SUM(F8:F17) -> 13124.99 | G18: =SUM(G8:G17) -> 54167.6 | H18: =IF(G18>0,G18/$G$18,"-") -> 1
A19: Rejected Waste | G19: =SUM(C19:F19) -> 0 | H19: =IF(G19>0,G19/$G$18,"-") -> -
A20: Waste transferred out | G20: =SUM(C20:F20) -> 0 | H20: =IF(G20>0,G20/$G$18,"-") -> -
A22: Energy Usage / Export | B22: Unit | C22: Q1 | D22: Q2 | E22: Q3 | F22: Q4 | G22: Year Total | H22: KWh/te
A23: Power Generated | B23: MWh | C23: 6212 | D23: 6369 | E23: 5677 | F23: 6076 | G23: =SUM(C23:F23) -> 24334 | H23: =IF(G23>0,G23*1000/$G$18,"-") -> 449.2353363
A24: Power Exported | C24: 5045.1 | D24: 5132.5 | E24: 4943.2 | F24: 4918.4 | G24: =SUM(C24:F24) -> 20039.2 | H24: =IF(G24>0,G24*1000/$G$18,"-") -> 369.948087
A25: Power Used on site | C25: 1218.146 | D25: 1255.352 | E25: 784.417 | F25: 1194.324 | G25: =SUM(C25:F25) -> 4452.239 | H25: 82.19376528
A26: Power Imported | C26: 51.2 | D26: 19.2 | E26: 50.8 | F26: 36.9 | G26: 158.1 | H26: 2.918718939
A27: Parasitic Load | B27: % | C27: =IF(C23>0,1-C24/(C23+C26),"-") -> 0.1944852472 | D27: =IF(D23>0,1-D24/(D23+D26),"-") -> 0.1965655427 | E27: 0.1369810398 | F27: 0.1954064356 | G27: 0.1818096447
A28: Thermal Energy Produced | B28: GWh | C28: 5.141 | D28: 4.397 | E28: 4.299 | F28: 4.143 | G28: =SUM(C28:F28) -> 17.98 | H28: 0.3319327421
A29: Thermal Energy Exported | C29: 1.414 | D29: 1.93 | E29: 1.872 | F29: 1.909 | G29: 7.125 | H29: 0.1315361951
A30: R1 value | C30: N/A | G30: Design / Operational / n/a
A32: Waste Disposal & Recovery | B32: Unit | C32: Q1 | D32: Q2 | E32: Q3 | F32: Q4 | G32: Year Total | H32: % inputs
A33: APC Residues - produced | B33: tonnes | C33: 613.96 | D33: 590.9 | E33: 619.4 | F33: 579.18 | G33: =SUM(C33:F33) -> 2403.44 | H33: =IF(G33>0,G33/$G$18,"-") -> 0.04437043546
A34: IBA - produced | C34: 2465.28 | D34: 2196.08 | E34: 2257.78 | F34: 1912.98 | G34: 8832.12 | H34: =IF(G34>0,G34/$G$18,"-") -> 0.1630517136
A35: Metals recycling | C35: 326.48 | D35: 325.24 | E35: 328.48 | F35: 264.52 | G35: =SUM(C35:F35) -> 1244.72 | H35: =IF(G35>0,G35/$G$18,"-") -> 0.02297905021
A36: Other | C36: 0 | D36: 0 | E36: 0 | F36: 0 | G36: =SUM(C36:F36) -> 0 | H36: =IF(G36>0,G36/$G$18,"-") -> -
A37: Other | C37: 0 | D37: 0 | E37: 0 | F37: 0 | G37: 0 | H37: =IF(G37>0,G37/$G$18,"-") -> -
A38: Other | C38: 0 | D38: 0 | E38: 0 | F38: 0 | G38: 0 | H38: =IF(G38>0,G38/$G$18,"-") -> -
A40: Raw Material Usage | B40: Unit | C40: Q1 | D40: Q2 | E40: Q3 | F40: Q4 | G40: Year Total | H40: kg or Ltr /te
A41: Mains Water | B41: m3 | C41: 860 | D41: 971 | E41: 1066 | F41: 845 | G41: =SUM(C41:F41) -> 3742 | H41: =IF(G41>0,G41*1000/$G$18,"-") -> 69.08188659
A42: Other Water | B42: m3 | G42: 0 | H42: =IF(G42>0,G42*1000/$G$18,"-") -> -
A43: Ammonia / Urea | B43: kgs | C43: 2093.587 | D43: 2391.304 | E43: 2558.696 | F43: 1113.152 | G43: 8156.739 | H43: 150.5833561
A44: Activated Carbon | B44: kgs | C44: 4798.32 | D44: 5066.04 | E44: 4900.27 | F44: 4892.66 | G44: 19657.29 | H44: 362.8975624
A45: Lime / hydrated lime | B45: kgs | C45: 85210 | D45: 95260 | E45: 89210 | F45: 95290 | G45: 364970 | H45: 6737.791595
A46: Fuel oil | B46: ltrs | G46: 0 | H46: -
A47: Gas | B47: cf | C47: 864467.7 | D47: 318644.2 | E47: 1022254 | F47: 648447.9 | G47: 2853813.8 | H47: 52684.88543
A48: Other | C48: 0 | D48: 0 | E48: 0 | F48: 0 | G48: 0 | H48: -
A50: Summary of Hours | B50: Line/Unit | C50: Q1 | D50: Q2 | E50: Q3 | F50: Q4 | G50: Year Total
A51: Hours of waste combustion, total | B51: =+B5 -> 1 | C51: 1999.3 | D51: 2110.85 | E51: 2041.78 | F51: 2038.61 | G51: =SUM(C51:F51) -> 8190.54 | H51: x %
A52: Hours of waste combustion, total | B52: 2 | C52: n/a | D52: n/a | E52: n/a | F52: n/a | G52: 0 | H52: x %
A53: Hours of waste combustion, total | B53: 3 | C53: n/a | D53: n/a | E53: n/a | F53: n/a | G53: 0 | H53: x %
A54: Hours of waste combustion, total | B54: 4 | C54: n/a | D54: n/a | E54: n/a | F54: n/a | G54: 0 | H54: x %
A55: Hours of waste combustion, total | B55: 5 | C55: n/a | D55: n/a | E55: n/a | F55: n/a | G55: =SUM(C55:F55) -> 0 | H55: x %
A56: Hours of turbine operations, total | B56: 1 | C56: 2016.6 | D56: 2109.7 | E56: 2042.2 | F56: 2035.5 | G56: 8204 | H56: x %
A57: Hours of turbine operations, total | B57: 2 | G57: 0 | H57: x %
A58: Hours of heat / steam export | C58: n/a | D58: n/a | E58: n/a | F58: n/a | G58: 0 | H58: =IF(B58>0,G57/8760,"n/a") -> n/a
A59: Abnormal Events | B59: qty. | C59: 0 | D59: 0 | E59: 0 | F59: 0 | G59: 0 | H59: =IF(G59>0,"yes","no") -> no
A60: Abnormal operation | B60: hours | C60: 0 | D60: 0 | E60: 0 | F60: 0 | G60: 0 | H60: =+(G60)/8760 -> 0
A61: Permit Breaches | B61: qty. | C61: 0 | D61: 0 | E61: 0 | F61: 0 | G61: 0 | H61: =IF(G61>0,"yes","no") -> no

Sheet Operational Summary
A1: =+'Cover Page'!$B$29 -> Annual Performance Report 2020 | E1: =+'Cover Page'!$B$33 -> Newlincs Development IWMF
A3: Summary of Plant Operations and Maintenance during the reporting year | K3: Notes:
A5: During 2020 the plant operated for 8191 hours, scheduled maintenance was undertaken in November main works included boiler feed pump replacement, economiser tube repairs and steam turbine maintenance. | K5: Include summary of key operational and/or mainteanance activity undertaken in the year, such as any major component upgrades and/or replacements
A29: Summary of Residue Handling for the reporting year
A31: Air Pollution Control residues (APCR) is disposed of at permitted treatment centre where the material is stabilised and disposed of in a hazardous landfill site. Incinerator Bottom Ash (IBA) produced is recycled at a permitted treatment centre to produce Incinerator bottom ash aggregate (IBAA) which is used as a blend constituent in various aggregate mixtures. The process involves screening the material, separating the ferrous and non-ferrous metals for recycling, re-screening, then further metal removal and then final product stockpiling. | K31: Include in here a summary of residue handling regimes and destinations

Sheet Perf. Form 1
A1: =+'Cover Page'!C39 -> 2020 | B1: Annual Reporting Performance Form 1
A3: =+'Cover Page'!B31 -> Permit EPR/BT4249 | F3: Operator: | G3: =+'Cover Page'!B37:I37 -> 0
A4: Facility: | B4: =+'Cover Page'!B33:I33 -> Newlincs Development IWMF | F4: Form: | G4: Performance 1
A6: Reporting Period from: | D6: 2020-01-01 | F6: to: | G6: 2020-12-31
A8: =+A1 -> 2020 | B8: Annual Reporting of Waste Disposal and Recovery
A9: Waste Description | C9: Disposal Route(s) | E9: Disposal Tonnes | G9: Recovery Tonnes | I9: % / tonne of waste incinerated
A10: 1) Hazardous Wastes
A11: APC Residues | C11: D01 | E11: 2403 | I11: =IF((E11+G11)>0,(E11+G11)/'Operational Data'!$G$18, "-") -> 0.04436231253
A12: IBA | I12: =IF((E12+G12)>0,(E12+G12)/'Operational Data'!$G$18, "-") -> -
I13: =IF((E13+G13)>0,(E13+G13)/'Operational Data'!$G$18, "-") -> -
I14: =IF((E14+G14)>0,(E14+G14)/'Operational Data'!$G$18, "-") -> -
A15: Total Hazardous Waste | E15: =SUM(E11:F14) -> 2403 | G15: =SUM(G11:H14) -> 0 | I15: =IF((E15+G15)>0,(E15+G15)/'Operational Data'!$G$18, "-") -> 0.04436231253
A17: 2) Non-Hazardous Wastes
A18: IBA | C18: R5 | E18: 8832 | I18: =IF((E18+G18)>0,(E18+G18)/'Operational Data'!$G$18, "-") -> 0.1630494982
A19: Ferrous Metal | C19: R4 | E19: 1245 | I19: =IF((E19+G19)>0,(E19+G19)/'Operational Data'!$G$18, "-") -> 0.02298421935
A20: Process Water | I20: =IF((E20+G20)>0,(E20+G20)/'Operational Data'!$G$18, "-") -> -
I21: =IF((E21+G21)>0,(E21+G21)/'Operational Data'!$G$18, "-") -> -
I22: =IF((E22+G22)>0,(E22+G22)/'Operational Data'!$G$18, "-") -> -
A23: Total Non-Hazardous Waste | E23: =SUM(E18:F22) -> 10077 | G23: =SUM(G18:H22) -> 0 | I23: =IF((E23+G23)>0,(E23+G23)/'Operational Data'!$G$18, "-") -> 0.1860337176
A24: TOTAL WASTE | E24: =+E23+E15 -> 12480 | G24: =+G23+G15 -> 0 | I24: =IF((E24+G24)>0,(E24+G24)/'Operational Data'!$G$18, "-") -> 0.2303960301
A26: Operator’s comments :
A31: =+A1 -> 2020 | B31: Annual Reporting of Water and Other Raw Material Usage
A32: Raw Material | E32: Usage | G32: Unit | H32: Specific Useage | J32: Unit
A33: Mains Water | E33: 3742 | G33: m3 | H33: =IF(E33>0,E33/'Operational Data'!$G$18,"-") -> 0.06908188659 | J33: m3/te
A34: Total Water | E34: 3742 | G34: m3 | H34: =IF(E34>0,E34/'Operational Data'!$G$18,"-") -> 0.06908188659 | J34: m3/te
A35: Urea / Ammonia | E35: 8156.74 | G35: kg | H35: =IF(E35>0,E35/'Operational Data'!$G$18,"-") -> 0.1505833746 | J35: kg/te
A36: Activated Carbon | E36: 19657.3 | G36: kg | H36: =IF(E36>0,E36/'Operational Data'!$G$18,"-") -> 0.362897747 | J36: kg/te
A37: Lime / hydrated lime / Sodium Bicarb. | E37: 364970 | G37: kg | H37: =IF(E37>0,E37/'Operational Data'!$G$18,"-") -> 6.737791595 | J37: kg/te
A39: Operator’s comments :
A43: =+A31 -> 2020 | B43: Annual Reporting of other performance indicators
A44: Parameter | C44: Results by Line
C45: A1 | D45: A2 | E45: A3 | F45: A4 | G45: A5 | I45: Turbine 1 | J45: Turbine 2
A46: Operating hours for the year, hours | C46: 8191 | I46: 8204
A47: Number of periods of abnormal operation, qty. | C47: 0
A48: Cumulative hours of abnormal operation for this year, hours | C48: 0
A50: Operator’s comments :
A54: Signed: | G54: Date:

Sheet Energy Form 1
A1: =+'Cover Page'!C39 -> 2020 | B1: Annual Reporting of Energy Usage/Export
A3: =+'Cover Page'!B31 -> Permit EPR/BT4249 | F3: Operator: | G3: =+'Cover Page'!B37:I37 -> 0
A5: Facility: | B5: =+'Cover Page'!B33:I33 -> Newlincs Development IWMF | F5: Form: | G5: Energy 1
A7: Reporting Period from: | D7: =+'Perf. Form 1'!D6:E6 -> 2020-01-01 | F7: to: | G7: =+'Perf. Form 1'!G6:H6 -> 2020-12-31
A9: Energy Source | D9: Energy Usage | F9: Unit | G9: Specific Usage (KWh/tonne incinerated
A10: Electricity Produced | D10: 24333 | F10: MWh | G10: =+'Operational Data'!H23 -> 449.2353363
A11: Electricity Imported | D11: 158.1 | F11: MWh | G11: =+'Operational Data'!H26 -> 2.918718939
A12: Electricity Exported | D12: 20039 | F12: MWh | G12: =+'Operational Data'!H24 -> 369.948087
A13: Gas Oil | D13: N/A | F13: tonnes
A14: Steam/hot water exported | D14: 7.125 | F14: GWh | G14: =+'Operational Data'!H29 -> 0.1315361951
A18: Operator’s comments :
A29: Signed: | G29: Date:

Sheet Permit Compliance
A1: =+'Cover Page'!$B$29 -> Annual Performance Report 2020 | E1: =+'Cover Page'!$B$33 -> Newlincs Development IWMF
A3: Summary of Permit Compliance
A5: Compliance with permit limits for continuously monitored pollutants
A7: The plant met its emission limits as shown in the table below:
A8: Substance | C8: Percentage time compliant during operation
C9: Half-hourly limit | F9: Daily limit
A10: Particulates | C10: 1 | F10: 1
A11: Oxides of nitrogen | C11: 1 | F11: 1
A12: Sulphur dioxide | C12: 1 | F12: 1
A13: Carbon monoxide | C13: 1 | F13: 1
A14: Total organic carbon | C14: 1 | F14: 1
A15: Hydrogen chloride | C15: 1 | F15: 1
A16: Hydrogen fluoride
C17: 1 | F17: 1
A19: Summary of any notifications or non-compliances under the permit
A20: Date | B20: Summary of notification or non-compliance [including Line/Reference] | E20: Reason | H20: Measures taken to prevent reoccurrence
A21: 2020-05-18 | B21: Non notification of malfunction, breakdown or failure of plant or techniques | E21: AST identified invalid calibration functions for some components | H21: QAL2 carried out, new calibration functions derivied and implemented.
A22: 2020-05-18 | B22: Non notification of malfunction, breakdown or failure of plant or techniques | E22: Schedule 1 form not completed and sent | H22: EMS procedures and staff training reviewed
A27: Summary of any complaints received and actions to taken to resolve them.
A28: Date | B28: Summary of complaint [including Line/Reference] | E28: Reason * | H28: Measures taken to prevent reoccurrence
B29: None
E34: * including whether substantiated by the operator or the EA

Sheet Improvements
A1: =+'Cover Page'!$B$29 -> Annual Performance Report 2020 | E1: =+'Cover Page'!$B$33 -> Newlincs Development IWMF
A3: Summary of Plant Improvements
A5: Summary of any efficiency improvements that have been completed within the year.
A6: None
A16: Summary of any permit improvement conditions that have been completed within the year and the resulting environmental benefits.
A17: None
A27: Summary of any changes to the plant or operating techniques which required a variation to the permit and a summary of the resulting environmental impact.
A28: None
A38: Summary of any other improvements made to the plant or planned to be made and a summary of the resulting environmental benefits.
A39: Replacement of CEMs apparatus planned for 2021

Sheet Public Liasion
A1: =+'Cover Page'!$B$29 -> Annual Performance Report 2020 | E1: =+'Cover Page'!$B$33 -> Newlincs Development IWMF
A3: Details of Public & Stakeholder Liasion
A5: Summary of events held during the reporting year.
A6: Date | C6: Description
C7: Public liaison residents panel - No meetings held during 2020
A16: List of events planned for next year
A17: Date | C17: Description
C18: No events planned - visitors are welcome please contact us
A29: If you wish to be involved in the public liasion programme, please contact info@newlincs.com

Sheet Residue Quality
A1: =+'Cover Page'!$B$29 -> Annual Performance Report 2020 | E1: =+'Cover Page'!$B$33 -> Newlincs Development IWMF
A3: Residue Quality Monitoring Requirements
A5: Summary of monitoring undertaken and compliance
A6: Incinerator bottom ash samples analysed monthly for LOI analysis. Incinerator bottom ash and APC samples full analyisis carried out quarterly
A13: Commentary on any specific events
A14: Date & Event | C14: Description
A27: Residue Quality Monitoring Results
A28: Parameter (unit) | C28: Limit | D28: Normal Operation
D29: Bottom ash | F29: APC Residues
A30: Loss on Ignition (%) | C30: <5% | D30: 3.19
A31: ToC (%) | C31: <3% | D31: N/A
A32: No. of Assessments Undertaken | C32: --- | D32: 12 | F32: 4
A33: No. of Hazardous Assessments | C33: --- | D33: N/A
A35: Comments :
A36: Reported data is the average of all 12 monthly values.

Sheet Water
A1: =+'Cover Page'!$B$29 -> Annual Performance Report 2020 | E1: =+'Cover Page'!$B$33 -> Newlincs Development IWMF
A3: Emissions to Water
A5: Summary of monitoring undertaken and compliance
A6: Swales (W1, W2 and MRF) hold only clean surface water from roadways and building roofs, all are checked weekly for contamination and pH level.
A8: pH readings are also taken prior to any release of water from swales.
A13: Commentary on any specific events
A14: Date & Event | C14: Description
A22: Emissions to Water / Sewer
A23: Parameter | D23: Monitoring Frequency | G23: Limit | H23: Target | I23: Max. | J23: Average
A24: Swale pH - W1 | D24: Weekly | G24: 9 | I24: 9 | J24: 7.83
A25: Swale pH - W2 | D25: Weekly | G25: 9 | I25: 8.9 | J25: 7.51
A26: Swale pH - MRF | D26: Weekly | G26: 9 | I26: 8.7 | J26: 7.85

Sheet Air (periodic)
A1: =+'Cover Page'!$B$29 -> Annual Performance Report 2020 | E1: =+'Cover Page'!$B$33 -> Newlincs Development IWMF
A3: Emissions to Air (periodically monitored)
A5: Summary of monitoring undertaken, standards used and compliance | M5: Notes:
A6: Monitoring undertaken quarterly to ISO15713; EN14385; MID14385; EN1948; ISO11338 as appropriate. | M6: Template may require adjustment for any bespoke monitoring requirements of permit.
A9: Results of emissions to air that are periodically monitored
A10: Substance | C10: Ref. Period | D10: Emission Limit Value | F10: Average | M10: User to add additional tables as necessary, depending on whether quarterly or bi-annual reporting is required for the compliance year
F11: A1 | G11: A2 | H11: A3 | I11: A4 | J11: A5
A12: Hydrogen fluoride | C12: 1 hr | D12: 2 mg/m3 | F12: 0.06
A13: Cd and Th and their compounds | C13: 6-8hrs | D13: 0.05 mg/m3 | F13: 0.00105
A14: Hg and its compounds | C14: 6-8hrs | D14: 0.05 mg/m3 | F14: 0.00085
A15: Sb, As, Pb, Cr, Co, Cu, Mn, Ni, V and their compounds | C15: 6-8hrs | D15: 0.5 mg/m3 | F15: 0.0795
A16: Dioxins & Furans (I-TEQ) | C16: 6-8hrs | D16: 0.1 ng/m3 | F16: 0.0368
A17: PCBs (WHO-TEQ Humans / Mammals) | C17: 6-8hrs | D17: None set ng/m3 | F17: 0.00491
A18: PCBs (WHO-TEQ Fish) | C18: 6-8hrs | D18: None set ng/m3 | F18: 0.00026
A19: PCBs (WHO-TEQ Birds) | C19: 6-8hrs | D19: None set ng/m3 | F19: 0.0083
A20: Dioxins & Furans (WHO-TEQ Humans / Mammals) | C20: 6-8hrs | D20: None set ng/m3 | F20: 0.0368
A21: Dioxins & Furans (WHO-TEQ Fish) | C21: 6-8hrs | D21: None set ng/m3 | F21: 0.0379
A22: Dioxins & Furans (WHO-TEQ Birds) | C22: 6-8hrs | D22: None set ng/m3 | F22: 0.09865
A23: Anthanthrene | C23: 6-8hrs | D23: None set µg/m3 | F23: 0.0015
A24: Benzo(a)anthracene | C24: 6-8hrs | D24: None set µg/m3 | F24: 0.0035
A25: Benzo(a)pyrene | C25: 6-8hrs | D25: None set µg/m3 | F25: 0.0095
A26: Benzo(b)fluoranthene | C26: 6-8hrs | D26: None set µg/m3 | F26: 0.01
A27: Benzo(b)naptho(2,1-d) thiophene | C27: 6-8hrs | D27: None set µg/m3 | F27: 0.0035
A28: Benzo(c)phenanthrene | C28: 6-8hrs | D28: None set µg/m3 | F28: 0.0025
A29: Benzo(ghi)perylene | C29: 6-8hrs | D29: None set µg/m3 | F29: 0.004
A30: Benzo(k)fluoranthene | C30: 6-8hrs | D30: None set µg/m3 | F30: 0.003
A31: Cholanthrene | C31: 6-8hrs | D31: None set µg/m3 | F31: 0.0015
A32: Chrysene | C32: 6-8hrs | D32: None set µg/m3 | F32: 0.0095
A33: Cyclopenta(cd)pyrene | C33: 6-8hrs | D33: None set µg/m3 | F33: 0.003
A34: Dibenzo(ai)pyrene | C34: 6-8hrs | D34: None set µg/m3 | F34: 0.0015
A35: Dibenzo(ah)anthracene | C35: 6-8hrs | D35: None set µg/m3 | F35: 0.0025
A36: Fluoranthene | C36: 6-8hrs | D36: None set µg/m3 | F36: 0.0305
A37: Indeno(123-cd) pyrene | C37: 6-8hrs | D37: None set µg/m3 | F37: 0.002
A38: Naphthalene | C38: 6-8hrs | D38: None set µg/m3 | F38: 0.06
A39: Comments :
A40: Data reported is the average of Q1, Q2, Q3, and Q4 results.

Sheet Air (CEMS)
A1: =+'Cover Page'!$B$29 -> Annual Performance Report 2020 | I1: =+'Cover Page'!$B$33 -> Newlincs Development IWMF
A3: Emissions to Air (continuously monitored)
P4: Notes:
A5: Summary of monitoring undertaken, standards used and compliance | P5: Template may require adjustment for any bespoke monitoring requirements of permit
A11: Results of emissions to air that are continuously monitored
A12: Substance | B12: Reference Period | C12: Emission Limit Value | D12: A1 | F12: A2 | H12: A3 | J12: A4 | L12: A5
D13: Max. | E13: Avg. | F13: Max. | G13: Avg. | H13: Max. | I13: Avg. | J13: Max. | K13: Avg. | L13: Max. | M13: Avg.
A14: Oxides of nitrogen | B14: Daily mean | C14: 200 mg/m3 | D14: 197.4 | E14: 196.68
B15: ½ hourly mean | C15: 400 mg/m3 | D15: 197.44 | E15: 196.6
A16: Particulates | B16: Daily mean | C16: 10 mg/m3 | D16: 0.28 | E16: 0.158
B17: ½ hourly mean | C17: 30 mg/m3 | D17: 0.28 | E17: 0.159
A18: Total Organic Carbon | B18: Daily mean | C18: 10 mg/m3 | D18: 1.44 | E18: 0.372
B19: ½ hourly mean | C19: 20 mg/m3 | D19: 1.38 | E19: 0.372
A20: Hydrogen chloride | B20: Daily mean | C20: 10 mg/m3 | D20: 4.35 | E20: 2.99
B21: ½ hourly mean | C21: 60 mg/m3 | D21: 4.35 | E21: 3.01
A22: Sulphur dioxide | B22: Daily mean | C22: 50 mg/m3 | D22: 9.43 | E22: 8.9
B23: ½ hourly mean | C23: 200 mg/m3 | D23: 9.57 | E23: 8.92
A24: Carbon monoxide | B24: Daily mean | C24: 50 mg/m3 | D24: 4.04 | E24: 3.6
B25: ½ hourly mean | C25: 100 mg/m3 * | D25: 4.15 | E25: 3.7
A26: Ammonia | B26: Daily mean | C26: No limit set | D26: 0.13 | E26: 0.03
A27: * = delete or amend as appropriate

Sheet HCl
A1: =+'Cover Page'!$B$29 -> Annual Performance Report 2020 | E1: =+'Cover Page'!$B$33 -> Newlincs Development IWMF
A3: Monitoring of Hydrogen Chloride emissions | D3: Whole Installation | G3: See Notes in Cell Q3 | J3: =+A3 -> Monitoring of Hydrogen Chloride emissions | N3: Per Combustion Line | Q3: Notes:
Q4: User to add logic to complete Whole installation, Table A5:G18. From the data in Per Combustion Line, Table J6:O79, subject to No. of lines installed
A5: mg/Nm3 | B5: 1/2 Hourly Reference Periods | E5: Daily Reference Periods
A6: =+'Cover Page'!C39 -> 2020 | B6: 1/2 hourly HCl ELV | C6: Monthly 1/2 hourly mean | D6: Highest 1/2 hourly maximum | E6: Daily HCl ELV | F6: Monthly daily mean | G6: Highest daily maximum | J6: =+A6 -> 2020 | K6: mg/Nm3 | L6: Monthly 1/2 hourly mean | M6: Monthly 1/2 hourly maximum | N6: Monthly daily mean | O6: Monthly daily maximum
A7: Jan | B7: 60 | C7: 3.11 | D7: 14.17 | E7: 10 | F7: 3.04 | G7: 4.61 | J7: A1 | K7: Jan | L7: 3.11 | M7: 14.17 | N7: 3.04 | O7: 4.61
A8: Feb | B8: 60 | C8: 3.07 | D8: 14.53 | E8: 10 | F8: 2.95 | G8: 4.92 | K8: Feb | L8: 3.07 | M8: 14.53 | N8: 2.95 | O8: 4.92
A9: Mar | B9: 60 | C9: 3.16 | D9: 10.84 | E9: 10 | F9: 3.16 | G9: 5.12 | K9: Mar | L9: 3.16 | M9: 10.84 | N9: 3.16 | O9: 5.12 | Q9: Whole Installation table A5:G18:
A10: Apr | B10: 60 | C10: 3.93 | D10: 18.64 | E10: 10 | F10: 3.93 | G10: 6.81 | K10: Apr | L10: 3.93 | M10: 18.64 | N10: 3.93 | O10: 6.81 | Q10: Mean: for 1/2 hourly and daily periods calculate mean of values across all operational combustion lines for the month
A11: May | B11: 60 | C11: 4.35 | D11: 15.9 | E11: 10 | F11: 4.35 | G11: 6.17 | K11: May | L11: 4.35 | M11: 15.9 | N11: 4.35 | O11: 6.17
A12: Jun | B12: 60 | C12: 3.18 | D12: 15.84 | E12: 10 | F12: 3.14 | G12: 5.36 | K12: Jun | L12: 3.18 | M12: 15.84 | N12: 3.14 | O12: 5.36
A13: Jul | B13: 60 | C13: 3.44 | D13: 15.66 | E13: 10 | F13: 3.32 | G13: 4.93 | K13: Jul | L13: 3.44 | M13: 15.66 | N13: 3.32 | O13: 4.93 | Q13: Maximum: for 1/2 hourly and daily periods use the highest value across all operational combustion lines for the month
A14: Aug | B14: 60 | C14: 3.19 | D14: 17.7 | E14: 10 | F14: 3.19 | G14: 6.32 | K14: Aug | L14: 3.19 | M14: 17.7 | N14: 3.19 | O14: 6.32
A15: Sep | B15: 60 | C15: 2.68 | D15: 20.4 | E15: 10 | F15: 2.71 | G15: 4.89 | K15: Sep | L15: 2.68 | M15: 20.4 | N15: 2.71 | O15: 4.89
A16: Oct | B16: 60 | C16: 2.32 | D16: 12.9 | E16: 10 | F16: 2.34 | G16: 4.37 | K16: Oct | L16: 2.32 | M16: 12.9 | N16: 2.34 | O16: 4.37
A17: Nov | B17: 60 | C17: 2.01 | D17: 10.31 | E17: 10 | F17: 2.04 | G17: 3.45 | K17: Nov | L17: 2.01 | M17: 10.31 | N17: 2.04 | O17: 3.45
A18: Dec | B18: 60 | C18: 1.73 | D18: 5.92 | E18: 10 | F18: 1.73 | G18: 2.22 | K18: Dec | L18: 1.73 | M18: 5.92 | N18: 1.73 | O18: 2.22
K19: Annual | L19: =AVERAGE(L7:L18) -> 3.014166667 | M19: =MAX(M7:M18) -> 20.4 | N19: =AVERAGE(N7:N18) -> 2.991666667 | O19: =MAX(O7:O18) -> 6.81
J21: =+A6 -> 2020 | K21: mg/Nm3 | L21: Monthly 1/2 hourly mean | M21: Monthly 1/2 hourly maximum | N21: Monthly daily mean | O21: Monthly daily maximum
J22: A2 | K22: Jan
K23: Feb
K24: Mar
K25: Apr
K26: May
K27: Jun
K28: Jul
K29: Aug
K30: Sep
K31: Oct
K32: Nov
K33: Dec
K34: Annual | L34: =AVERAGE(L22:L33) ->  | M34: =MAX(M22:M33) -> 0 | N34: =AVERAGE(N22:N33) ->  | O34: =MAX(O22:O33) -> 0
J36: =+A6 -> 2020 | K36: mg/Nm3 | L36: Monthly 1/2 hourly mean | M36: Monthly 1/2 hourly maximum | N36: Monthly daily mean | O36: Monthly daily maximum
J37: A3 | K37: Jan
K38: Feb
K39: Mar
K40: Apr
K41: May
K42: Jun
K43: Jul
K44: Aug
K45: Sep
K46: Oct
K47: Nov
A48: Comments : | K48: Dec
K49: Annual | L49: =AVERAGE(L37:L48) ->  | M49: =MAX(M37:M48) -> 0 | N49: =AVERAGE(N37:N48) ->  | O49: =MAX(O37:O48) -> 0
J51: =+A6 -> 2020 | K51: mg/Nm3 | L51: Monthly 1/2 hourly mean | M51: Monthly 1/2 hourly maximum | N51: Monthly daily mean | O51: Monthly daily maximum
J52: A4 | K52: Jan
K53: Feb
K54: Mar
K55: Apr
K56: May
K57: Jun
K58: Jul
K59: Aug
K60: Sep
K61: Oct
K62: Nov
K63: Dec
K64: Annual | L64: =AVERAGE(L52:L63) ->  | M64: =MAX(M52:M63) -> 0 | N64: =AVERAGE(N52:N63) ->  | O64: =MAX(O52:O63) -> 0
J66: =+A6 -> 2020 | K66: mg/Nm3 | L66: Monthly 1/2 hourly mean | M66: Monthly 1/2 hourly maximum | N66: Monthly daily mean | O66: Monthly daily maximum
J67: A5 | K67: Jan
K68: Feb
K69: Mar
K70: Apr
K71: May
K72: Jun
K73: Jul
K74: Aug
K75: Sep
K76: Oct
K77: Nov
K78: Dec
K79: Annual | L79: =AVERAGE(L67:L78) ->  | M79: =MAX(M67:M78) -> 0 | N79: =AVERAGE(N67:N78) ->  | O79: =MAX(O67:O78) -> 0

Sheet SO2
A1: =+'Cover Page'!$B$29 -> Annual Performance Report 2020 | E1: =+'Cover Page'!$B$33 -> Newlincs Development IWMF
A3: Monitoring of Sulphur dioxide emissions | D3: Whole Installation | G3: See Notes in Cell Q3 | J3: =+A3 -> Monitoring of Sulphur dioxide emissions | N3: Per Combustion Line | Q3: Notes:
Q4: User to add logic to complete Whole installation, Table A5:G18. From the data in Per Combustion Line, Table J6:O79, subject to No. of lines installed
A5: mg/Nm3 | B5: 1/2 Hourly Reference Periods | E5: Daily Reference Periods
A6: =+'Cover Page'!C39 -> 2020 | B6: 1/2 hourly SO2 ELV | C6: Monthly 1/2 hourly mean | D6: Highest 1/2 hourly maximum | E6: Daily SO2 ELV | F6: Monthly daily mean | G6: Highest daily maximum | J6: =+A6 -> 2020 | K6: mg/Nm3 | L6: Monthly 1/2 hourly mean | M6: Monthly 1/2 hourly maximum | N6: Monthly daily mean | O6: Monthly daily maximum
A7: Jan | B7: 200 | C7: 9.41 | D7: 101.97 | E7: 50 | F7: 9.42 | G7: 21.2 | J7: A1 | K7: Jan | L7: 9.41 | M7: 101.97 | N7: 9.42 | O7: 21.2
A8: Feb | B8: 200 | C8: 8.9 | D8: 87.97 | E8: 50 | F8: 8.87 | G8: 13.7 | K8: Feb | L8: 8.9 | M8: 87.97 | N8: 8.87 | O8: 13.7
A9: Mar | B9: 200 | C9: 8.51 | D9: 71.33 | E9: 50 | F9: 8.51 | G9: 11.97 | K9: Mar | L9: 8.51 | M9: 71.33 | N9: 8.51 | O9: 11.97 | Q9: Whole Installation table A5:G18:
A10: Apr | B10: 200 | C10: 9.07 | D10: 101.68 | E10: 50 | F10: 9.07 | G10: 21.56 | K10: Apr | L10: 9.07 | M10: 101.68 | N10: 9.07 | O10: 21.56 | Q10: Mean: for 1/2 hourly and daily periods calculate mean of values across all operational combustion lines for the month
A11: May | B11: 200 | C11: 8.37 | D11: 62.24 | E11: 50 | F11: 8.37 | G11: 14.28 | K11: May | L11: 8.37 | M11: 62.24 | N11: 8.37 | O11: 14.28
A12: Jun | B12: 200 | C12: 8.93 | D12: 65.66 | E12: 50 | F12: 8.92 | G12: 15.45 | K12: Jun | L12: 8.93 | M12: 65.66 | N12: 8.92 | O12: 15.45
A13: Jul | B13: 200 | C13: 9.57 | D13: 88.67 | E13: 50 | F13: 9.09 | G13: 14.34 | K13: Jul | L13: 9.57 | M13: 88.67 | N13: 9.09 | O13: 14.34 | Q13: Maximum: for 1/2 hourly and daily periods use the highest value across all operational combustion lines for the month
A14: Aug | B14: 200 | C14: 9.52 | D14: 70.51 | E14: 50 | F14: 9.43 | G14: 17.81 | K14: Aug | L14: 9.52 | M14: 70.51 | N14: 9.43 | O14: 17.81
A15: Sep | B15: 200 | C15: 8.86 | D15: 100.92 | E15: 50 | F15: 8.84 | G15: 14.15 | K15: Sep | L15: 8.86 | M15: 100.92 | N15: 8.84 | O15: 14.15
A16: Oct | B16: 200 | C16: 9.2 | D16: 102.53 | E16: 50 | F16: 9.31 | G16: 15.21 | K16: Oct | L16: 9.2 | M16: 102.53 | N16: 9.31 | O16: 15.21
A17: Nov | B17: 200 | C17: 8.77 | D17: 51.39 | E17: 50 | F17: 9.05 | G17: 14.23 | K17: Nov | L17: 8.77 | M17: 51.39 | N17: 9.05 | O17: 14.23
A18: Dec | B18: 200 | C18: 7.98 | D18: 80.87 | E18: 50 | F18: 7.98 | G18: 15.7 | K18: Dec | L18: 7.98 | M18: 80.87 | N18: 7.98 | O18: 15.7
K19: Annual | L19: =AVERAGE(L7:L18) -> 8.924166667 | M19: =MAX(M7:M18) -> 102.53 | N19: =AVERAGE(N7:N18) -> 8.905 | O19: =MAX(O7:O18) -> 21.56
J21: =+A6 -> 2020 | K21: mg/Nm3 | L21: Monthly 1/2 hourly mean | M21: Monthly 1/2 hourly maximum | N21: Monthly daily mean | O21: Monthly daily maximum
J22: A2 | K22: Jan
K23: Feb
K24: Mar
K25: Apr
K26: May
K27: Jun
K28: Jul
K29: Aug
K30: Sep
K31: Oct
K32: Nov
K33: Dec
K34: Annual | L34: =AVERAGE(L22:L33) ->  | M34: =MAX(M22:M33) -> 0 | N34: =AVERAGE(N22:N33) ->  | O34: =MAX(O22:O33) -> 0
J36: =+A6 -> 2020 | K36: mg/Nm3 | L36: Monthly 1/2 hourly mean | M36: Monthly 1/2 hourly maximum | N36: Monthly daily mean | O36: Monthly daily maximum
J37: A3 | K37: Jan
K38: Feb
K39: Mar
K40: Apr
K41: May
K42: Jun
K43: Jul
K44: Aug
K45: Sep
K46: Oct
K47: Nov
A48: Comments : | K48: Dec
K49: Annual | L49: =AVERAGE(L37:L48) ->  | M49: =MAX(M37:M48) -> 0 | N49: =AVERAGE(N37:N48) ->  | O49: =MAX(O37:O48) -> 0
J51: =+A6 -> 2020 | K51: mg/Nm3 | L51: Monthly 1/2 hourly mean | M51: Monthly 1/2 hourly maximum | N51: Monthly daily mean | O51: Monthly daily maximum
J52: A4 | K52: Jan
K53: Feb
K54: Mar
K55: Apr
K56: May
K57: Jun
K58: Jul
K59: Aug
K60: Sep
K61: Oct
K62: Nov
K63: Dec
K64: Annual | L64: =AVERAGE(L52:L63) ->  | M64: =MAX(M52:M63) -> 0 | N64: =AVERAGE(N52:N63) ->  | O64: =MAX(O52:O63) -> 0
J66: =+A6 -> 2020 | K66: mg/Nm3 | L66: Monthly 1/2 hourly mean | M66: Monthly 1/2 hourly maximum | N66: Monthly daily mean | O66: Monthly daily maximum
J67: A5 | K67: Jan
K68: Feb
K69: Mar
K70: Apr
K71: May
K72: Jun
K73: Jul
K74: Aug
K75: Sep
K76: Oct
K77: Nov
K78: Dec
K79: Annual | L79: =AVERAGE(L67:L78) ->  | M79: =MAX(M67:M78) -> 0 | N79: =AVERAGE(N67:N78) ->  | O79: =MAX(O67:O78) -> 0

Sheet NOx
A1: =+'Cover Page'!$B$29 -> Annual Performance Report 2020 | E1: =+'Cover Page'!$B$33 -> Newlincs Development IWMF
A3: Monitoring of Oxides of Nitrogen emissions | D3: Whole Installation | G3: See Notes in Cell Q3 | J3: =+A3 -> Monitoring of Oxides of Nitrogen emissions | N3: Per Combustion Line | Q3: Notes:
Q4: User to add logic to complete Whole installation, Table A5:G18. From the data in Per Combustion Line, Table J6:O79, subject to No. of lines installed
A5: mg/Nm3 | B5: 1/2 Hourly Reference Periods | E5: Daily Reference Periods
A6: =+'Cover Page'!C39 -> 2020 | B6: 1/2 hourly NOx ELV | C6: Monthly 1/2 hourly mean | D6: Highest 1/2 hourly maximum | E6: Daily NOx ELV | F6: Monthly daily mean | G6: Highest daily maximum | J6: =+A6 -> 2020 | K6: mg/Nm3 | L6: Monthly 1/2 hourly mean | M6: Monthly 1/2 hourly maximum | N6: Monthly daily mean | O6: Monthly daily maximum
A7: Jan | B7: 400 | C7: 197.14 | D7: 229.92 | E7: 200 | F7: 197.11 | G7: 197.57 | J7: A1 | K7: Jan | L7: 197.14 | M7: 229.92 | N7: 197.11 | O7: 197.57
A8: Feb | B8: 400 | C8: 196.78 | D8: 226.81 | E8: 200 | F8: 196.73 | G8: 198.24 | K8: Feb | L8: 196.78 | M8: 226.81 | N8: 196.73 | O8: 198.24
A9: Mar | B9: 400 | C9: 192.5 | D9: 227.5 | E9: 200 | F9: 192.5 | G9: 197.5 | K9: Mar | L9: 195.55 | M9: 230.89 | N9: 195.55 | O9: 197.67 | Q9: Whole Installation table A5:G18:
A10: Apr | B10: 400 | C10: 195.86 | D10: 235.62 | E10: 200 | F10: 195.86 | G10: 197.73 | K10: Apr | L10: 195.86 | M10: 235.62 | N10: 195.86 | O10: 197.73 | Q10: Mean: for 1/2 hourly and daily periods calculate mean of values across all operational combustion lines for the month
A11: May | B11: 400 | C11: 195.8 | D11: 229.5 | E11: 200 | F11: 197.73 | G11: 195.8 | K11: May | L11: 195.8 | M11: 229.5 | N11: 195.8 | O11: 197.73
A12: Jun | B12: 400 | C12: 196.94 | D12: 242.93 | E12: 200 | F12: 197.29 | G12: 197.66 | K12: Jun | L12: 196.94 | M12: 242.93 | N12: 197.29 | O12: 197.66
A13: Jul | B13: 400 | C13: 197.27 | D13: 239.34 | E13: 200 | F13: 197.35 | G13: 197.61 | K13: Jul | L13: 197.27 | M13: 239.34 | N13: 197.35 | O13: 197.61 | Q13: Maximum: for 1/2 hourly and daily periods use the highest value across all operational combustion lines for the month
A14: Aug | B14: 400 | C14: 197.42 | D14: 235.42 | E14: 200 | F14: 197.4 | G14: 198.41 | K14: Aug | L14: 197.42 | M14: 235.42 | N14: 197.4 | O14: 198.41
A15: Sep | B15: 400 | C15: 197.44 | D15: 229.88 | E15: 200 | F15: 197.4 | G15: 197.78 | K15: Sep | L15: 197.44 | M15: 229.88 | N15: 197.4 | O15: 197.78
A16: Oct | B16: 400 | C16: 196.89 | D16: 238.06 | E16: 200 | F16: 196.99 | G16: 197.66 | K16: Oct | L16: 196.89 | M16: 238.06 | N16: 196.99 | O16: 197.66
A17: Nov | B17: 400 | C17: 195.04 | D17: 232.6 | E17: 200 | F17: 196.52 | G17: 198.06 | K17: Nov | L17: 195.04 | M17: 232.6 | N17: 196.52 | O17: 198.06
A18: Dec | B18: 400 | C18: 197.12 | D18: 229.27 | E18: 200 | F18: 197.12 | G18: 197.9 | K18: Dec | L18: 197.12 | M18: 229.27 | N18: 197.12 | O18: 197.9
K19: Annual | L19: =AVERAGE(L7:L18) -> 196.6041667 | M19: =MAX(M7:M18) -> 242.93 | N19: =AVERAGE(N7:N18) -> 196.76 | O19: =MAX(O7:O18) -> 198.41
J21: =+A6 -> 2020 | K21: mg/Nm3 | L21: Monthly 1/2 hourly mean | M21: Monthly 1/2 hourly maximum | N21: Monthly daily mean | O21: Monthly daily maximum
J22: A2 | K22: Jan
K23: Feb
K24: Mar
K25: Apr
K26: May
K27: Jun
K28: Jul
K29: Aug
K30: Sep
K31: Oct
K32: Nov
K33: Dec
K34: Annual | L34: =AVERAGE(L22:L33) ->  | M34: =MAX(M22:M33) -> 0 | N34: =AVERAGE(N22:N33) ->  | O34: =MAX(O22:O33) -> 0
J36: =+A6 -> 2020 | K36: mg/Nm3 | L36: Monthly 1/2 hourly mean | M36: Monthly 1/2 hourly maximum | N36: Monthly daily mean | O36: Monthly daily maximum
J37: A3 | K37: Jan
K38: Feb
K39: Mar
K40: Apr
K41: May
K42: Jun
K43: Jul
K44: Aug
K45: Sep
K46: Oct
K47: Nov
A48: Comments : | K48: Dec
K49: Annual | L49: =AVERAGE(L37:L48) ->  | M49: =MAX(M37:M48) -> 0 | N49: =AVERAGE(N37:N48) ->  | O49: =MAX(O37:O48) -> 0
J51: =+A6 -> 2020 | K51: mg/Nm3 | L51: Monthly 1/2 hourly mean | M51: Monthly 1/2 hourly maximum | N51: Monthly daily mean | O51: Monthly daily maximum
J52: A4 | K52: Jan
K53: Feb
K54: Mar
K55: Apr
K56: May
K57: Jun
K58: Jul
K59: Aug
K60: Sep
K61: Oct
K62: Nov
K63: Dec
K64: Annual | L64: =AVERAGE(L52:L63) ->  | M64: =MAX(M52:M63) -> 0 | N64: =AVERAGE(N52:N63) ->  | O64: =MAX(O52:O63) -> 0
J66: =+A6 -> 2020 | K66: mg/Nm3 | L66: Monthly 1/2 hourly mean | M66: Monthly 1/2 hourly maximum | N66: Monthly daily mean | O66: Monthly daily maximum
J67: A5 | K67: Jan
K68: Feb
K69: Mar
K70: Apr
K71: May
K72: Jun
K73: Jul
K74: Aug
K75: Sep
K76: Oct
K77: Nov
K78: Dec
K79: Annual | L79: =AVERAGE(L67:L78) ->  | M79: =MAX(M67:M78) -> 0 | N79: =AVERAGE(N67:N78) ->  | O79: =MAX(O67:O78) -> 0

Sheet TOC
A1: =+'Cover Page'!$B$29 -> Annual Performance Report 2020 | E1: =+'Cover Page'!$B$33 -> Newlincs Development IWMF
A3: Monitoring of Total organic carbon emissions | D3: Whole Installation | G3: See Notes in Cell Q3 | J3: =+A3 -> Monitoring of Total organic carbon emissions | N3: Per Combustion Line | Q3: Notes:
Q4: User to add logic to complete Whole installation, Table A5:G18. From the data in Per Combustion Line, Table J6:O79, subject to No. of lines installed
A5: mg/Nm3 | B5: 1/2 Hourly Reference Periods | E5: Daily Reference Periods
A6: =+'Cover Page'!C39 -> 2020 | B6: 1/2 hourly TOC ELV | C6: Monthly 1/2 hourly mean | D6: Highest 1/2 hourly maximum | E6: Daily TOC ELV | F6: Monthly daily mean | G6: Highest daily maximum | J6: =+A6 -> 2020 | K6: mg/Nm3 | L6: Monthly 1/2 hourly mean | M6: Monthly 1/2 hourly maximum | N6: Monthly daily mean | O6: Monthly daily maximum
A7: Jan | B7: 20 | C7: 0.19 | D7: 8.13 | E7: 10 | F7: 0.19 | G7: 1.08 | J7: A1 | K7: Jan | L7: 0.19 | M7: 8.13 | N7: 0.19 | O7: 1.08
A8: Feb | B8: 20 | C8: 0.27 | D8: 4.91 | E8: 10 | F8: 0.27 | G8: 1.01 | K8: Feb | L8: 0.27 | M8: 4.91 | N8: 0.27 | O8: 1.01
A9: Mar | B9: 20 | C9: 0.07 | D9: 1.54 | E9: 10 | F9: 0.07 | G9: 0.39 | K9: Mar | L9: 0.07 | M9: 1.54 | N9: 0.07 | O9: 0.39 | Q9: Whole Installation table A5:G18:
A10: Apr | B10: 20 | C10: 0.06 | D10: 4.27 | E10: 10 | F10: 0.06 | G10: 0.66 | K10: Apr | L10: 0.06 | M10: 4.27 | N10: 0.06 | O10: 0.66 | Q10: Mean: for 1/2 hourly and daily periods calculate mean of values across all operational combustion lines for the month
A11: May | B11: 20 | C11: 0.05 | D11: 9.79 | E11: 10 | F11: 0.05 | G11: 0.42 | K11: May | L11: 0.05 | M11: 9.79 | N11: 0.05 | O11: 0.42
A12: Jun | B12: 20 | C12: 1.38 | D12: 4.96 | E12: 10 | F12: 1.44 | G12: 1.68 | K12: Jun | L12: 1.38 | M12: 4.96 | N12: 1.44 | O12: 1.68
A13: Jul | B13: 20 | C13: 1.22 | D13: 16.64 | E13: 10 | F13: 1.16 | G13: 2.32 | K13: Jul | L13: 1.22 | M13: 16.64 | N13: 1.16 | O13: 2.32 | Q13: Maximum: for 1/2 hourly and daily periods use the highest value across all operational combustion lines for the month
A14: Aug | B14: 20 | C14: 0.51 | D14: 7.78 | E14: 10 | F14: 0.5 | G14: 0.93 | K14: Aug | L14: 0.51 | M14: 7.78 | N14: 0.5 | O14: 0.93
A15: Sep | B15: 20 | C15: 0.23 | D15: 5.75 | E15: 10 | F15: 0.23 | G15: 0.84 | K15: Sep | L15: 0.23 | M15: 5.75 | N15: 0.23 | O15: 0.84
A16: Oct | B16: 20 | C16: 0.12 | D16: 3.49 | E16: 10 | F16: 0.13 | G16: 0.31 | K16: Oct | L16: 0.12 | M16: 3.49 | N16: 0.13 | O16: 0.31
A17: Nov | B17: 20 | C17: 0.19 | D17: 4.77 | E17: 10 | F17: 0.19 | G17: 0.63 | K17: Nov | L17: 0.19 | M17: 4.77 | N17: 0.19 | O17: 0.63
A18: Dec | B18: 20 | C18: 0.17 | D18: 2.96 | E18: 10 | F18: 0.17 | G18: 0.98 | K18: Dec | L18: 0.17 | M18: 2.96 | N18: 0.17 | O18: 0.98
K19: Annual | L19: =AVERAGE(L7:L18) -> 0.3716666667 | M19: =MAX(M7:M18) -> 16.64 | N19: =AVERAGE(N7:N18) -> 0.3716666667 | O19: =MAX(O7:O18) -> 2.32
J21: =+A6 -> 2020 | K21: mg/Nm3 | L21: Monthly 1/2 hourly mean | M21: Monthly 1/2 hourly maximum | N21: Monthly daily mean | O21: Monthly daily maximum
J22: A2 | K22: Jan
K23: Feb
K24: Mar
K25: Apr
K26: May
K27: Jun
K28: Jul
K29: Aug
K30: Sep
K31: Oct
K32: Nov
K33: Dec
K34: Annual | L34: =AVERAGE(L22:L33) ->  | M34: =MAX(M22:M33) -> 0 | N34: =AVERAGE(N22:N33) ->  | O34: =MAX(O22:O33) -> 0
J36: =+A6 -> 2020 | K36: mg/Nm3 | L36: Monthly 1/2 hourly mean | M36: Monthly 1/2 hourly maximum | N36: Monthly daily mean | O36: Monthly daily maximum
J37: A3 | K37: Jan
K38: Feb
K39: Mar
K40: Apr
K41: May
K42: Jun
K43: Jul
K44: Aug
K45: Sep
K46: Oct
K47: Nov
A48: Comments : | K48: Dec
K49: Annual | L49: =AVERAGE(L37:L48) ->  | M49: =MAX(M37:M48) -> 0 | N49: =AVERAGE(N37:N48) ->  | O49: =MAX(O37:O48) -> 0
J51: =+A6 -> 2020 | K51: mg/Nm3 | L51: Monthly 1/2 hourly mean | M51: Monthly 1/2 hourly maximum | N51: Monthly daily mean | O51: Monthly daily maximum
J52: A4 | K52: Jan
K53: Feb
K54: Mar
K55: Apr
K56: May
K57: Jun
K58: Jul
K59: Aug
K60: Sep
K61: Oct
K62: Nov
K63: Dec
K64: Annual | L64: =AVERAGE(L52:L63) ->  | M64: =MAX(M52:M63) -> 0 | N64: =AVERAGE(N52:N63) ->  | O64: =MAX(O52:O63) -> 0
J66: =+A6 -> 2020 | K66: mg/Nm3 | L66: Monthly 1/2 hourly mean | M66: Monthly 1/2 hourly maximum | N66: Monthly daily mean | O66: Monthly daily maximum
J67: A5 | K67: Jan
K68: Feb
K69: Mar
K70: Apr
K71: May
K72: Jun
K73: Jul
K74: Aug
K75: Sep
K76: Oct
K77: Nov
K78: Dec
K79: Annual | L79: =AVERAGE(L67:L78) ->  | M79: =MAX(M67:M78) -> 0 | N79: =AVERAGE(N67:N78) ->  | O79: =MAX(O67:O78) -> 0

Sheet Particulates
A1: =+'Cover Page'!$B$29 -> Annual Performance Report 2020 | E1: =+'Cover Page'!$B$33 -> Newlincs Development IWMF
A3: Monitoring of Particulate matter emissions | D3: Whole Installation | G3: See Notes in Cell Q3 | J3: =+A3 -> Monitoring of Particulate matter emissions | N3: Per Combustion Line | Q3: Notes:
Q4: User to add logic to complete Whole installation, Table A5:G18. From the data in Per Combustion Line, Table J6:O79, subject to No. of lines installed
A5: mg/Nm3 | B5: 1/2 Hourly Reference Periods | E5: Daily Reference Periods
A6: =+'Cover Page'!C39 -> 2020 | B6: 1/2 hourly PM ELV | C6: Monthly 1/2 hourly mean | D6: Highest 1/2 hourly maximum | E6: Daily PM ELV | F6: Monthly daily mean | G6: Highest daily maximum | J6: =+A6 -> 2020 | K6: mg/Nm3 | L6: Monthly 1/2 hourly mean | M6: Monthly 1/2 hourly maximum | N6: Monthly daily mean | O6: Monthly daily maximum
A7: Jan | B7: 30 | C7: 0.14 | D7: 1.02 | E7: 10 | F7: 0.14 | G7: 0.17 | J7: A1 | K7: Jan | L7: 0.14 | M7: 1.02 | N7: 0.14 | O7: 0.17
A8: Feb | B8: 30 | C8: 0.17 | D8: 0.57 | E8: 10 | F8: 0.16 | G8: 0.22 | K8: Feb | L8: 0.17 | M8: 0.57 | N8: 0.16 | O8: 0.22
A9: Mar | B9: 30 | C9: 0.19 | D9: 0.35 | E9: 10 | F9: 0.19 | G9: 0.24 | K9: Mar | L9: 0.19 | M9: 0.35 | N9: 0.19 | O9: 0.24 | Q9: Whole Installation table A5:G18:
A10: Apr | B10: 30 | C10: 0.21 | D10: 0.43 | E10: 10 | F10: 0.21 | G10: 0.26 | K10: Apr | L10: 0.21 | M10: 0.43 | N10: 0.21 | O10: 0.26 | Q10: Mean: for 1/2 hourly and daily periods calculate mean of values across all operational combustion lines for the month
A11: May | B11: 30 | C11: 0.15 | D11: 0.55 | E11: 10 | F11: 0.15 | G11: 0.2 | K11: May | L11: 0.15 | M11: 0.55 | N11: 0.15 | O11: 0.2
A12: Jun | B12: 30 | C12: 0.13 | D12: 0.28 | E12: 10 | F12: 0.13 | G12: 0.17 | K12: Jun | L12: 0.13 | M12: 0.28 | N12: 0.13 | O12: 0.17
A13: Jul | B13: 30 | C13: 0.11 | D13: 0.31 | E13: 10 | F13: 0.11 | G13: 0.14 | K13: Jul | L13: 0.11 | M13: 0.31 | N13: 0.11 | O13: 0.14 | Q13: Maximum: for 1/2 hourly and daily periods use the highest value across all operational combustion lines for the month
A14: Aug | B14: 30 | C14: 0.11 | D14: 0.38 | E14: 10 | F14: 0.11 | G14: 0.17 | K14: Aug | L14: 0.11 | M14: 0.38 | N14: 0.11 | O14: 0.17
A15: Sep | B15: 30 | C15: 0.11 | D15: 0.35 | E15: 10 | F15: 0.11 | G15: 0.18 | K15: Sep | L15: 0.11 | M15: 0.35 | N15: 0.11 | O15: 0.18
A16: Oct | B16: 30 | C16: 0.12 | D16: 0.39 | E16: 10 | F16: 0.12 | G16: 0.17 | K16: Oct | L16: 0.12 | M16: 0.39 | N16: 0.12 | O16: 0.17
A17: Nov | B17: 30 | C17: 0.19 | D17: 2.37 | E17: 10 | F17: 0.18 | G17: 0.29 | K17: Nov | L17: 0.19 | M17: 2.37 | N17: 0.18 | O17: 0.29
A18: Dec | B18: 30 | C18: 0.28 | D18: 2.03 | E18: 10 | F18: 0.28 | G18: 0.41 | K18: Dec | L18: 0.28 | M18: 2.03 | N18: 0.28 | O18: 0.41
K19: Annual | L19: =AVERAGE(L7:L18) -> 0.1591666667 | M19: =MAX(M7:M18) -> 2.37 | N19: =AVERAGE(N7:N18) -> 0.1575 | O19: =MAX(O7:O18) -> 0.41
J21: =+A6 -> 2020 | K21: mg/Nm3 | L21: Monthly 1/2 hourly mean | M21: Monthly 1/2 hourly maximum | N21: Monthly daily mean | O21: Monthly daily maximum
J22: A2 | K22: Jan
K23: Feb
K24: Mar
K25: Apr
K26: May
K27: Jun
K28: Jul
K29: Aug
K30: Sep
K31: Oct
K32: Nov
K33: Dec
K34: Annual | L34: =AVERAGE(L22:L33) ->  | M34: =MAX(M22:M33) -> 0 | N34: =AVERAGE(N22:N33) ->  | O34: =MAX(O22:O33) -> 0
J36: =+A6 -> 2020 | K36: mg/Nm3 | L36: Monthly 1/2 hourly mean | M36: Monthly 1/2 hourly maximum | N36: Monthly daily mean | O36: Monthly daily maximum
J37: A3 | K37: Jan
K38: Feb
K39: Mar
K40: Apr
K41: May
K42: Jun
K43: Jul
K44: Aug
K45: Sep
K46: Oct
K47: Nov
A48: Comments : | K48: Dec
K49: Annual | L49: =AVERAGE(L37:L48) ->  | M49: =MAX(M37:M48) -> 0 | N49: =AVERAGE(N37:N48) ->  | O49: =MAX(O37:O48) -> 0
J51: =+A6 -> 2020 | K51: mg/Nm3 | L51: Monthly 1/2 hourly mean | M51: Monthly 1/2 hourly maximum | N51: Monthly daily mean | O51: Monthly daily maximum
J52: A4 | K52: Jan
K53: Feb
K54: Mar
K55: Apr
K56: May
K57: Jun
K58: Jul
K59: Aug
K60: Sep
K61: Oct
K62: Nov
K63: Dec
K64: Annual | L64: =AVERAGE(L52:L63) ->  | M64: =MAX(M52:M63) -> 0 | N64: =AVERAGE(N52:N63) ->  | O64: =MAX(O52:O63) -> 0
J66: =+A6 -> 2020 | K66: mg/Nm3 | L66: Monthly 1/2 hourly mean | M66: Monthly 1/2 hourly maximum | N66: Monthly daily mean | O66: Monthly daily maximum
J67: A5 | K67: Jan
K68: Feb
K69: Mar
K70: Apr
K71: May
K72: Jun
K73: Jul
K74: Aug
K75: Sep
K76: Oct
K77: Nov
K78: Dec
K79: Annual | L79: =AVERAGE(L67:L78) ->  | M79: =MAX(M67:M78) -> 0 | N79: =AVERAGE(N67:N78) ->  | O79: =MAX(O67:O78) -> 0

Sheet CO 0.5hourly
A1: =+'Cover Page'!$B$29 -> Annual Performance Report 2020 | E1: =+'Cover Page'!$B$33 -> Newlincs Development IWMF
A3: Monitoring of Carbon Monoxide (half hourly) | D3: Whole Installation | G3: See Notes in Cell Q3 | J3: =+A3 -> Monitoring of Carbon Monoxide (half hourly) | N3: Per Combustion Line | Q3: Notes:
Q4: User to add logic to complete Whole installation, Table A5:G18. From the data in Per Combustion Line, Table J6:O79, subject to No. of lines installed
A5: mg/Nm3 | B5: 1/2 Hourly Reference Periods | E5: Daily Reference Periods
A6: =+'Cover Page'!C39 -> 2020 | B6: 1/2 hourly CO ELV | C6: Monthly 1/2 hourly mean | D6: Highest 1/2 hourly maximum | E6: Daily CO ELV | F6: Monthly daily mean | G6: Highest daily maximum | J6: =+A6 -> 2020 | K6: mg/Nm3 | L6: Monthly 1/2 hourly mean | M6: Monthly 1/2 hourly maximum | N6: Monthly daily mean | O6: Monthly daily maximum
A7: Jan | B7: 100 | C7: 3.6 | D7: 66.27 | E7: 50 | F7: 3.52 | G7: 4.73 | J7: A1 | K7: Jan | L7: 3.6 | M7: 66.27 | N7: 3.52 | O7: 4.73
A8: Feb | B8: =+B7 -> 100 | C8: 4.15 | D8: 57.84 | E8: =+E7 -> 50 | F8: 4.04 | G8: 5.61 | K8: Feb | L8: 4.15 | M8: 57.84 | N8: 4.04 | O8: 5.61
A9: Mar | B9: =+B8 -> 100 | C9: 3.68 | D9: 19.31 | E9: =+E8 -> 50 | F9: 3.68 | G9: 4.28 | K9: Mar | L9: 3.68 | M9: 19.31 | N9: 3.68 | O9: 4.28 | Q9: Whole Installation table A5:G18:
A10: Apr | B10: 100 | C10: 3.75 | D10: 87.54 | E10: 50 | F10: 3.75 | G10: 5.66 | K10: Apr | L10: 3.75 | M10: 87.54 | N10: 3.75 | O10: 5.66 | Q10: Mean: for 1/2 hourly and daily periods calculate mean of values across all operational combustion lines for the month
A11: May | B11: 100 | C11: 3.85 | D11: 23.09 | E11: 50 | F11: 3.85 | G11: 4.44 | K11: May | L11: 3.85 | M11: 23.09 | N11: 3.85 | O11: 4.44
A12: Jun | B12: 100 | C12: 3.63 | D12: 22.32 | E12: 50 | F12: 3.6 | G12: 4.28 | K12: Jun | L12: 3.63 | M12: 22.32 | N12: 3.6 | O12: 4.28
A13: Jul | B13: 100 | C13: 3.79 | D13: 27.99 | E13: 50 | F13: 3.62 | G13: 4.81 | K13: Jul | L13: 3.79 | M13: 27.99 | N13: 3.62 | O13: 4.81 | Q13: Maximum: for 1/2 hourly and daily periods use the highest value across all operational combustion lines for the month
A14: Aug | B14: 100 | C14: 3.68 | D14: 41.69 | E14: 50 | F14: 3.66 | G14: 5.24 | K14: Aug | L14: 3.68 | M14: 41.69 | N14: 3.66 | O14: 5.24
A15: Sep | B15: 100 | C15: 3.1 | D15: 22.03 | E15: 50 | F15: 3.09 | G15: 4.26 | K15: Sep | L15: 3.1 | M15: 22.03 | N15: 3.09 | O15: 4.26
A16: Oct | B16: 100 | C16: 3.26 | D16: 36.03 | E16: 50 | F16: 3.23 | G16: 4.16 | K16: Oct | L16: 3.26 | M16: 36.03 | N16: 3.23 | O16: 4.16
A17: Nov | B17: 100 | C17: 3.74 | D17: 22.22 | E17: 50 | F17: 3.64 | G17: 4.52 | K17: Nov | L17: 3.74 | M17: 22.22 | N17: 3.64 | O17: 4.52
A18: Dec | B18: 100 | C18: 3.73 | D18: 59.22 | E18: 50 | F18: 3.73 | G18: 5.62 | K18: Dec | L18: 3.73 | M18: 59.22 | N18: 3.73 | O18: 5.62
K19: Annual | L19: =AVERAGE(L7:L18) -> 3.663333333 | M19: =MAX(M7:M18) -> 87.54 | N19: =AVERAGE(N7:N18) -> 3.6175 | O19: =MAX(O7:O18) -> 5.66
J21: =+A6 -> 2020 | K21: mg/Nm3 | L21: Monthly 1/2 hourly mean | M21: Monthly 1/2 hourly maximum | N21: Monthly daily mean | O21: Monthly daily maximum
J22: A2 | K22: Jan
K23: Feb
K24: Mar
K25: Apr
K26: May
K27: Jun
K28: Jul
K29: Aug
K30: Sep
K31: Oct
K32: Nov
K33: Dec
K34: Annual | L34: =AVERAGE(L22:L33) ->  | M34: =MAX(M22:M33) -> 0 | N34: =AVERAGE(N22:N33) ->  | O34: =MAX(O22:O33) -> 0
J36: =+A6 -> 2020 | K36: mg/Nm3 | L36: Monthly 1/2 hourly mean | M36: Monthly 1/2 hourly maximum | N36: Monthly daily mean | O36: Monthly daily maximum
J37: A3 | K37: Jan
K38: Feb
K39: Mar
K40: Apr
K41: May
K42: Jun
K43: Jul
K44: Aug
K45: Sep
K46: Oct
K47: Nov
A48: Comments : | K48: Dec
K49: Annual | L49: =AVERAGE(L37:L48) ->  | M49: =MAX(M37:M48) -> 0 | N49: =AVERAGE(N37:N48) ->  | O49: =MAX(O37:O48) -> 0
J51: =+A6 -> 2020 | K51: mg/Nm3 | L51: Monthly 1/2 hourly mean | M51: Monthly 1/2 hourly maximum | N51: Monthly daily mean | O51: Monthly daily maximum
J52: A4 | K52: Jan
K53: Feb
K54: Mar
K55: Apr
K56: May
K57: Jun
K58: Jul
K59: Aug
K60: Sep
K61: Oct
K62: Nov
K63: Dec
K64: Annual | L64: =AVERAGE(L52:L63) ->  | M64: =MAX(M52:M63) -> 0 | N64: =AVERAGE(N52:N63) ->  | O64: =MAX(O52:O63) -> 0
J66: =+A6 -> 2020 | K66: mg/Nm3 | L66: Monthly 1/2 hourly mean | M66: Monthly 1/2 hourly maximum | N66: Monthly daily mean | O66: Monthly daily maximum
J67: A5 | K67: Jan
K68: Feb
K69: Mar
K70: Apr
K71: May
K72: Jun
K73: Jul
K74: Aug
K75: Sep
K76: Oct
K77: Nov
K78: Dec
K79: Annual | L79: =AVERAGE(L67:L78) ->  | M79: =MAX(M67:M78) -> 0 | N79: =AVERAGE(N67:N78) ->  | O79: =MAX(O67:O78) -> 0

Sheet NH3
A1: =+'Cover Page'!$B$29 -> Annual Performance Report 2020 | E1: =+'Cover Page'!$B$33 -> Newlincs Development IWMF
A3: Monitoring of Ammonia emissions | D3: Whole Installation | G3: See Notes in Cell Q3 | J3: =+A3 -> Monitoring of Ammonia emissions | N3: Per Combustion Line | Q3: Notes:
Q4: User to add logic to complete Whole installation, Table A5:G18. From the data in Per Combustion Line, Table J6:O79, subject to No. of lines installed
A5: mg/Nm3 | B5: 1/2 Hourly Reference Periods | E5: Daily Reference Periods
A6: =+'Cover Page'!C39 -> 2020 | B6: 1/2 hourly NH3 ELV | C6: Monthly 1/2 hourly mean | D6: Highest 1/2 hourly maximum | E6: Daily NH3 ELV | F6: Monthly daily mean | G6: Highest daily maximum | J6: =+A6 -> 2020 | K6: mg/Nm3 | L6: Monthly 1/2 hourly mean | M6: Monthly 1/2 hourly maximum | N6: Monthly daily mean | O6: Monthly daily maximum
A7: Jan | B7: 0 | C7: 1 | D7: 1.17 | E7: 0 | F7: 0.01 | G7: 0.04 | J7: A1 | K7: Jan | L7: 0.01 | M7: 1.17 | N7: 0.01 | O7: 0.04
A8: Feb | B8: =+B7 -> 0 | C8: 0.01 | D8: 0.53 | E8: =+E7 -> 0 | F8: 0.01 | G8: 0.05 | K8: Feb | L8: 0.01 | M8: 0.53 | N8: 0.01 | O8: 0.05
A9: Mar | B9: =+B8 -> 0 | C9: 0.01 | D9: 1.48 | E9: =+E8 -> 0 | F9: 0.01 | G9: 0.04 | K9: Mar | L9: 0 | M9: 0.29 | N9: 0 | O9: 0.03 | Q9: Whole Installation table A5:G18:
A10: Apr | B10: 0 | C10: 0.01 | D10: 2.66 | E10: 0 | F10: 0.01 | G10: 0.07 | K10: Apr | L10: 0.01 | M10: 2.66 | N10: 0.01 | O10: 0.07 | Q10: Mean: for 1/2 hourly and daily periods calculate mean of values across all operational combustion lines for the month
A11: May | B11: 0 | C11: 0.01 | D11: 2.65 | E11: 0 | F11: 0.01 | G11: 0.09 | K11: May | L11: 0.01 | M11: 2.65 | N11: 0.01 | O11: 0.09
A12: Jun | B12: 0 | C12: 0.11 | D12: 4.71 | E12: 0 | F12: 0.12 | G12: 0.37 | K12: Jun | L12: 0.11 | M12: 4.71 | N12: 0.12 | O12: 0.37
A13: Jul | B13: 0 | C13: 0.15 | D13: 5.7 | E13: 0 | F13: 0.13 | G13: 0.68 | K13: Jul | L13: 0.15 | M13: 5.7 | N13: 0.13 | O13: 0.68 | Q13: Maximum: for 1/2 hourly and daily periods use the highest value across all operational combustion lines for the month
A14: Aug | B14: 0 | C14: 0.08 | D14: 2.3 | E14: 0 | F14: 0.07 | G14: 0.69 | K14: Aug | L14: 0.08 | M14: 2.3 | N14: 0.07 | O14: 0.69
A15: Sep | B15: 0 | C15: 0 | D15: 0.18 | E15: 0 | F15: 0 | G15: 0.02 | K15: Sep | L15: 0 | M15: 0.18 | N15: 0 | O15: 0.02
A16: Oct | B16: 0 | C16: 0.01 | D16: 0.64 | E16: 0 | F16: 0.01 | G16: 0.02 | K16: Oct | L16: 0.01 | M16: 0.64 | N16: 0.01 | O16: 0.02
A17: Nov | B17: 0 | C17: 0 | D17: 0.46 | E17: 0 | F17: 0 | G17: 0.03 | K17: Nov | L17: 0 | M17: 0.46 | N17: 0 | O17: 0.03
A18: Dec | B18: 0 | C18: 0.01 | D18: 0.58 | E18: 0 | F18: 0.01 | G18: 0.16 | K18: Dec | L18: 0.01 | M18: 0.58 | N18: 0.01 | O18: 0.16
K19: Annual | L19: =AVERAGE(L7:L18) -> 0.03333333333 | M19: =MAX(M7:M18) -> 5.7 | N19: =AVERAGE(N7:N18) -> 0.03166666667 | O19: =MAX(O7:O18) -> 0.69
J21: =+A6 -> 2020 | K21: mg/Nm3 | L21: Monthly 1/2 hourly mean | M21: Monthly 1/2 hourly maximum | N21: Monthly daily mean | O21: Monthly daily maximum
J22: A2 | K22: Jan
K23: Feb
K24: Mar
K25: Apr
K26: May
K27: Jun
K28: Jul
K29: Aug
K30: Sep
K31: Oct
K32: Nov
K33: Dec
K34: Annual | L34: =AVERAGE(L22:L33) ->  | M34: =MAX(M22:M33) -> 0 | N34: =AVERAGE(N22:N33) ->  | O34: =MAX(O22:O33) -> 0
J36: =+A6 -> 2020 | K36: mg/Nm3 | L36: Monthly 1/2 hourly mean | M36: Monthly 1/2 hourly maximum | N36: Monthly daily mean | O36: Monthly daily maximum
J37: A3 | K37: Jan
K38: Feb
K39: Mar
K40: Apr
K41: May
K42: Jun
K43: Jul
K44: Aug
K45: Sep
K46: Oct
K47: Nov
A48: Comments : | K48: Dec
A49: An indicated ELV value of zero in the table above means that no ammonia limit is set in the permit. | K49: Annual | L49: =AVERAGE(L37:L48) ->  | M49: =MAX(M37:M48) -> 0 | N49: =AVERAGE(N37:N48) ->  | O49: =MAX(O37:O48) -> 0
J51: =+A6 -> 2020 | K51: mg/Nm3 | L51: Monthly 1/2 hourly mean | M51: Monthly 1/2 hourly maximum | N51: Monthly daily mean | O51: Monthly daily maximum
J52: A4 | K52: Jan
K53: Feb
K54: Mar
K55: Apr
K56: May
K57: Jun
K58: Jul
K59: Aug
K60: Sep
K61: Oct
K62: Nov
K63: Dec
K64: Annual | L64: =AVERAGE(L52:L63) ->  | M64: =MAX(M52:M63) -> 0 | N64: =AVERAGE(N52:N63) ->  | O64: =MAX(O52:O63) -> 0
J66: =+A6 -> 2020 | K66: mg/Nm3 | L66: Monthly 1/2 hourly mean | M66: Monthly 1/2 hourly maximum | N66: Monthly daily mean | O66: Monthly daily maximum
J67: A5 | K67: Jan
K68: Feb
K69: Mar
K70: Apr
K71: May
K72: Jun
K73: Jul
K74: Aug
K75: Sep
K76: Oct
K77: Nov
K78: Dec
K79: Annual | L79: =AVERAGE(L67:L78) ->  | M79: =MAX(M67:M78) -> 0 | N79: =AVERAGE(N67:N78) ->  | O79: =MAX(O67:O78) -> 0
